Cogmind - Beta 15 *** ADVENTURER MODE // 2025.05.28 @ 17:13:18 Player: willyarr Result: Destroyed by D-53 Grenadier with Mini Grenade Launcher Performance ------------- Evolutions (0) 0 Regions Visited (2) 400 Robots Destroyed (10) 50 Value Destroyed (212) 212 Prototype IDs (0) 0 Alien Tech Used (0) 0 Bonus (0) 0 TOTAL SCORE: 662 Bonus ------- None Cogmind --------- Core Integrity 0/250 Matter 287/300 Energy 74/100 System Corruption 0% Temperature Cool (70) Movement Core (400) Ox7 Location -10/Mines Parts ------- > --- POWER (1) -------- (None) > --- PROPULSION (2) --- (None) > --- UTILITY (2) ------ Large Storage Unit Visual Processing Unit > --- WEAPON (2) ------- Medium Laser Assault Rifle > --- INVENTORY (15) --- Ion Engine Compact Wheel Flight Unit Flight Unit Flight Unit Heat Sink Sensor Array Propulsion Shielding Propulsion Shielding Light Armor Plating Hardened Light Armor Plating Small Laser Grenade Launcher Mining Claw Peak State ------------ > --- POWER ------------ Ion Engine > --- PROPULSION ------- Wheel Compact Wheel > --- UTILITY ---------- Medium Storage Unit Visual Processing Unit > --- WEAPON ----------- Medium Laser Medium Laser > --- INVENTORY -------- Ion Engine Compact Wheel Compact Wheel Compact Wheel Sensor Array Propulsion Shielding Light Armor Plating Assault Rifle Light Assault Rifle Mining Claw [Rating: 9] Favorites ----------- Power Ion Engine Engine Ion Engine Propulsion Wheel Wheel Wheel Utility Visual Processing Unit Storage Large Storage Unit Processor Visual Processing Unit Weapon Medium Laser Energy Gun Medium Laser Ballistic Gun Assault Rifle Slashing Weapon Mining Claw Build | -11 -10 -10 ------- Run | Yrd Mat Min Slots Evolved . | . . . Power . | . . . Propulsion . | . . . Utility . | . . . Weapon . | . . . Parts Attached 13 | 7 6 . Power 1 | 1 . . Engine 1 | 1 . . Core . | . . . Reactor . | . . . Propulsion 3 | 2 1 . Treads . | . . . Leg . | . . . Wheel 3 | 2 1 . Hover . | . . . Flight . | . . . Utility 4 | 1 3 . Device . | . . . Storage 3 | 1 2 . Processor 1 | . 1 . Hackware . | . . . Protection . | . . . Artifact . | . . . Weapon 5 | 3 2 . Energy Gun 2 | 1 1 . Energy Cannon . | . . . Ballistic Gun 2 | 2 . . Ballistic Cannon . | . . . Launcher . | . . . Special Weapon . | . . . Impact Weapon . | . . . Slashing Weapon 1 | . 1 . Piercing Weapon . | . . . Special Melee Weapon . | . . . Unidentified Prototypes . | . . . Parts Lost 4 | . . 4 Power 1 | . . 1 Propulsion 2 | . . 2 Utility . | . . . Weapon 1 | . . 1 Highest Loss Streak 4 | . . 4 To Critical Strikes . | . . . Average Backups 11 | 3 11 14 Power . | . 1 1 Propulsion 3 | 2 3 4 Utility 3 | . 3 6 Weapon 3 | 1 3 3 Tool/Special . | . . . Unused Backups 17 | . 4 13 Power 1 | . . 1 Propulsion 8 | . 4 4 Utility 6 | . . 6 Weapon 2 | . . 2 Tool/Special . | . . . Average Slot Usage (%) 97 | . 98 92 Engine 13 | . 13 12 Wheel 27 | . 28 24 Storage 14 | . 14 14 Processor 12 | . 12 14 Energy Gun 26 | . 26 26 Slashing Weapon 1 | . 1 . Peak Build Rating 9 | 6 9 9 Average Rating 8 | 3 8 8 On Entrance 5 | . 6 9 Naked Turns . | . . . Heaviest Build 29 | 13 29 29 Greatest Support 26 | 26 26 20 Greatest Overweight (x) 1 | . 1 1 Average Overweight (x) . | . . 1 Largest Inventory Capacity 15 | 8 15 15 Average Capacity 11 | 6 11 15 Most Carried 15 | 7 15 15 Average Carried 11 | 4 11 14 Final Capacity 15 | 8 15 15 Final Carried 15 | 6 15 14 Class Distribution -------------------- 100% | Mutant Dominant Class ---------------- Mutant | -10/Materials Mutant | -10/Mines Resources | -11 -10 -10 ----------- Run | Yrd Mat Min Matter Collected 360 | 179 181 . Remotely . | . . . Salvage Created 269 | . 222 47 Parts 19 | . 12 7 Haulers Intercepted . | . . . Recyclers Shooed . | . . . Parts Field Recycled . | . . . Retrieved Matter . | . . . Parts Self-Destructed . | . . . Prevented . | . . . Kills | -11 -10 -10 ------- Run | Yrd Mat Min Combat Hostiles Destroyed 7 | . 4 3 Guns 7 | . 4 3 Classes Destroyed 4 | . 3 1 Worker 1 | . 1 . Watcher 2 | . 2 . Swarmer 3 | . . 3 Grunt 4 | . 4 . Best Kill Streak 4 | . 4 3 Combat Bots Only 3 | . 2 3 Max Kills in Single Turn 2 | . 2 1 Gunslinging 1 | . 1 . Exploded . | . . . Melee . | . . . Uniques/NPCs Destroyed . | . . . Combat | -11 -10 -10 -------- Run | Yrd Mat Min Hostile Shots Fired 42 | . 18 24 Missed 9 | . 6 3 Hits 33 | . 12 21 Projectile 33 | . 12 21 AOE 13 | . . 13 Damage Taken 612 | . 114 498 Core 253 | . 32 221 Absorbed by Shields . | . . . Ignored by Resistances 170 | . 35 135 Regen/Repaired (Parts) 38 | . 38 . Core Remaining (%) 100 | 100 . . Volleys Fired 24 | . 12 12 Largest 2 | . 2 2 Hottest 100 | . 100 100 Shots Fired 45 | . 24 21 Gun 45 | . 24 21 Cannon . | . . . Launcher . | . . . Special . | . . . Kinetic 1 | . . 1 Thermal 44 | . 24 20 Explosive . | . . . Electromagnetic . | . . . Robot Hit Streak 9 | . 9 4 Robot Miss Streak 2 | . 2 2 Penetration Max . | . . . Secondary Targets 2 | . 2 . Max Gunslinging Chain 1 | . 1 . Shots Hit Robots 34 | . 20 14 Core Hits 17 | . 12 5 Critical Kills . | . . . Critical Parts Destroyed . | . . . Critical Strikes 4 | . 3 1 Burn 4 | . 3 1 Melee Attacks 6 | . 6 . Impact . | . . . Slashing 6 | . 6 . Piercing . | . . . Sneak Attacks . | . . . Combat Hostiles . | . . . Follow-up Attacks . | . . . Damage Inflicted 442 | . 262 180 Guns 442 | . 262 180 Cannons . | . . . Explosions . | . . . Melee . | . . . Ramming . | . . . Kinetic 15 | . . 15 Thermal 427 | . 262 165 Explosive . | . . . Electromagnetic . | . . . Impact . | . . . Slashing . | . . . Piercing . | . . . Highest Corruption . | . . . Average Corruption . | . . . Corruption Purged . | . . . Corruption Blocked . | . . . Overload Shots . | . . . Overflow Damage . | . . . Projectiles . | . . . Explosions . | . . . Melee . | . . . Knockbacks . | . . . Impact . | . . . Kinetic . | . . . Secondary . | . . . Self-Inflicted Damage . | . . . Shots . | . . . Rammed . | . . . Targets Rammed . | . . . Kicked . | . . . Crushed . | . . . Highest Temperature 260 | . 260 156 Average Temperature 101 | . 119 72 Received Heat Transfer 84 | . 84 . Effects 3 | . 3 . Interference 3 | . 3 . Siege Activations . | . . . Martial Activations . | . . . Shielding Activations . | . . . Robots Disrupted . | . . . Combat Hostiles . | . . . Robots Corrupted . | . . . Combat Hostiles . | . . . Parts Fried . | . . . Impact Corruptions . | . . . Robots Melted . | . . . Combat Hostiles . | . . . Parts Melted 4 | . 4 . Heat Transferred 1554 | . 999 555 Parts Sabotaged . | . . . Parts Stolen . | . . . Parts Stripped . | . . . Power Chain Reactions . | . . . Alert | -11 -10 -10 ------- Run | Yrd Mat Min Maximum Alert Level . | . . . Low Security (%) 100 | 100 100 100 Level 1 . | . . . Level 2 . | . . . Level 3 . | . . . Level 4 . | . . . Level 5 . | . . . High Security . | . . . Max Security . | . . . Peak Influence 76 | . 76 60 Initial . | . . . Average 15 | . 15 24 Influence Increases 248 | . 178 70 Destroy 0b10 Robot/C 140 | . 80 60 Destroy 0b10 Robot/NC 15 | . 15 . Destroy Leader 34 | . 24 10 Successful Hack 55 | . 55 . Destroy Structure 4 | . 4 . Influence Decreases 238 | . 178 60 Time Decay 198 | . 178 20 Lost Part 40 | . . 40 Squads Dispatched 2 | . 2 . Investigation 2 | . 2 . Extermination . | . . . Reinforcement . | . . . Assault . | . . . Garrison . | . . . Intercept . | . . . Searches Triggered . | . . . Construction Impeded . | . . . Haulers Reinforced . | . . . Active Scanning Responses . | . . . Cargo Convoy Interrupts . | . . . Stealth | -11 -10 -10 --------- Run | Yrd Mat Min Distress Signals . | . . . Communications Jammed . | . . . Distress Signals . | . . . Times Spotted 11 | . 6 5 Peak Tracking Total 3 | . 3 3 Tactical Retreats . | . . . Traps | -11 -10 -10 ------- Run | Yrd Mat Min Traps Triggered 1 | . 1 . Indirectly . | . . . Trap Hack Attempts . | . . . Triggered . | . . . Disarmed . | . . . Reprogrammed . | . . . Reused . | . . . Traps Extracted . | . . . Installed . | . . . Triggered . | . . . Machines | -11 -10 -10 ---------- Run | Yrd Mat Min Machines Disabled . | . . . Max in Single Turn . | . . . Machines Repaired . | . . . Machines Dismantled . | . . . Machines Sabotaged . | . . . Overloaded Fab Kills . | . . . Hacking | -11 -10 -10 --------- Run | Yrd Mat Min Machines Accessed 8 | . 8 . Terminals 7 | . 7 . Fabricators . | . . . Repair Stations 1 | . 1 . Recycling Units . | . . . Scanalyzers . | . . . Garrison Access . | . . . Total Hacks 21 | . 21 . Successful 16 | . 16 . Failed 5 | . 5 . Catastrophic 1 | . 1 . Database Lockouts . | . . . Manual 4 | . 4 . Terminals 19 | . 19 . Fabricators . | . . . Repair Stations 2 | . 2 . Recycling Units . | . . . Scanalyzers . | . . . Garrison Access . | . . . Terminal Hacks 14 | . 14 . Record 3 | . 3 . Branch Access Points 1 | . 1 . Alert Level 1 | . 1 . Maintenance Status 1 | . 1 . Security Status 2 | . 2 . Recall Investigation 1 | . 1 . Hauler Manifests 2 | . 2 . Registered Components 1 | . 1 . Zone Layout 2 | . 2 . Fabricator Hacks . | . . . Repair Station Hacks 2 | . 2 . Scan Component 1 | . 1 . Repair 1 | . 1 . Recycling Unit Hacks . | . . . Scanalyzer . | . . . Garrison Access Hacks . | . . . Unauthorized Hacks . | . . . Terminals . | . . . Fabricators . | . . . Repair Stations . | . . . Recycling Units . | . . . Scanalyzers . | . . . Garrison Access . | . . . Data Cores Recovered . | . . . Used . | . . . Hacking Detections 8 | . 8 . Full Trace Events 1 | . 1 . Feedback Events . | . . . Feedback Blocked . | . . . Robot Schematics Acquired . | . . . Robots Built . | . . . Authchips . | . . . Time . | . . . Total Robot Build Rating . | . . . Part Schematics Acquired . | . . . Parts Built . | . . . Authchips . | . . . Time . | . . . Total Part Build Rating . | . . . Parts Repaired 1 | . 1 . Time 26 | . 26 . Parts Recycled . | . . . Recycled Matter . | . . . Retrieved Matter . | . . . Retrieved Components . | . . . Parts Scanalyzed . | . . . Part Schematics Acquired . | . . . Parts Damaged . | . . . Bothacking | -11 -10 -10 ------------ Run | Yrd Mat Min Used RIF Installer . | . . . Robots Hacked . | . . . Non-combat . | . . . Combat . | . . . Robot Hacks Applied . | . . . Relay Couplers Released . | . . . Fabnet Peak Effective % . | . . . Robots Rewired . | . . . Allies Hacked . | . . . Hacks Repelled . | . . . Allies | -11 -10 -10 -------- Run | Yrd Mat Min Total Allies . | . . . Largest Group . | . . . Highest-Rated Group . | . . . Highest-Rated Ally . | . . . Total Orders . | . . . Ally Attacks . | . . . Total Damage . | . . . Kills . | . . . Allies Corrupted . | . . . Allies Melted . | . . . Intel | -11 -10 -10 ------- Run | Yrd Mat Min Active Infowar (turns) 587 | . 511 76 Optics 587 | . 511 76 Robot Analysis Total . | . . . Derelict Logs Recovered . | . . . Drone Launches . | . . . Drone Recoveries . | . . . Exploration | -11 -10 -10 ------------- Run | Yrd Mat Min Turns Passed 726 | 51 599 76 Spaces Moved 606 | 38 527 41 Core 10 | 10 . . Treads . | . . . Legs . | . . . Wheels 596 | 28 527 41 Hover . | . . . Flight . | . . . Fastest Speed 50 | 50 80 95 Average Speed 89 | 79 90 95 Slowest Speed 95 | 90 95 95 Overloaded Moves . | . . . Propulsion Burnouts . | . . . Robots Hopped . | . . . Potential Cave-ins . | . . . Cave-ins Triggered . | . . . Exploration Rate (%) 35 | 3 90 12 Regions Visited 2 Branch Regions 1 Pre-discovered Areas . | . . . Known Exits Taken 1 | . 1 . Unknown Exits Taken 1 | 1 . . Scrap Searched . | . . . Spaces Dug 4 | . 4 . Terrain Destroyed 4 | . 4 . Melee 4 | . 4 . Projectile . | . . . AOE . | . . . Terrain Rammed . | . . . Walls Destroyed . | . . . Machines Disabled . | . . . Actions | -11 -10 -10 --------- Run | Yrd Mat Min Total 733 | 58 615 60 Wait 40 | 2 38 . Move 604 | 37 526 41 Hop . | . . . Pick Up 30 | 12 15 3 Fast Attach 2 | . 2 . Attach 7 | 6 . 1 Detach . | . . . Swap 8 | 1 7 . Drop 12 | . 9 3 Fire 24 | . 12 12 Melee 6 | . 6 . Ram . | . . . Kick . | . . . Crush . | . . . Escape Stasis . | . . . Rewire . | . . . Trap . | . . . Miscellaneous . | . . . Route ------- -11/Scrapyard -10/Materials (discovered 5 exits: [*Mat x3] / *Min x2) -10/Mines History --------- Turn | Location | Event 29 | -11/Scrapyard | Discovered new exit (range 15) 52 | -11/Scrapyard | Entered Materials 201 | -10/Materials | Discovered new exit (range 7) 277 | -10/Materials | Repaired Ion Engine 285 | -10/Materials | Discovered new exit (range 12) 312 | -10/Materials | Build established: Mutant 384 | -10/Materials | Discovered new exit (range 8) 556 | -10/Materials | Discovered new exit (range 10) 574 | -10/Materials | Identified exit to Mines 651 | -10/Materials | Entered Mines 663 | -10/Mines | Found a hidden stash of uninstalled traps 675 | -10/Mines | Assembled infested the area 716 | -10/Mines | Core integrity fell below 50% 726 | -10/Mines | Core integrity fell below 20% 727 | -10/Mines | Destroyed by D-53 Grenadier with Mini Grenade Launcher Last Messages --------------- 00683_ K-01 Serf collects debris. 00685_ S-10 Pest destroyed. 00699_ Dropped Hover Unit. 00699_ K-01 Serf collects debris. 00699_ Acquired Flight Unit. 00701_ Dropped Com. Wheel. 00702_ Acquired Flight Unit. 00706_ Dropped Com. Wheel. 00706_ Acquired Flight Unit. 00710_ C-30 ARC suffers critical hit (Burn). 00711_ C-30 ARC bursts open, deploying its payload. 00711_ D-53 Grenadier unfolds itself. 00711_ Wheel destroyed. 00713_ K-01 Serf collects debris. 00715_ K-01 Serf destroyed. 00715_ Ion Engine destroyed. 00717_ D-53 Grenadier destroyed. 00717_ Med. Laser destroyed. 00727_ The unstable cave ceiling collapses. Map ----- +----------------------------------------------------+ | ?????????????????????????????????????????????????? | | ?????????????????????????????????????????????????? | | ?????????????????????????????????????????????????? | | ?????????????????????????????????????????????????? | | ?????????????????????????????????????????????????? | | ?????????????????????????????????????????????????? | | ?????????????????????????????????????????????????? | | ?????????????????????????????????????????????????? | | ?????????????????????????????????????????????????? | | ???????????????????????#?????????????????????????? | | ??????????????????????? ?????????????????????????? | | ??????????????????????? ?????????????????????????? | | ???????????????????????# ????????????????????????? | | ???????????????????????# ????????????????????????? | | ???????????????????????# ????????????????????????? | | ???????????????????????# ????????????????????????? | | ???????????????????????# ??????##????????????????? | | ???????????????????????# ?????? ????????????????? | | ???????????????????????# ?????? ?????????????????? | | ???????????????????????# #####? ?#???????????????? | | ??????????????????????## #? #???????????????? | | ?????????????????????## [ ## #???????????????? | | ????????????????????## d #???????????????? | | ????????????????????# = #???????????????? | | ??????????????????# # #?????????????????? | | ??????????????????# @ #???????####??????? | | ??????????????????### =#??????## &#####??? | | ????????????????????# # ######## & & ##?? | | ????????????????????## % = & #?? | | ?????????????????????## ############ #?? | | ??????????????????????### ##??????????# # ##?? | | ????????????????????????## #?????####### #####??? | | ?????????????????????????# #?????# #?????? | | ?????????????????????????# #?????# #?????? | | ?????????????????????????# ?????# """ """ #?????? | | ?????????????????????????###?????# """ """ #?????? | | ?????????????????????????????????# """ """ #?????? | | ?????????????????????????????????# #?????? | | ?????????????????????????????????# #?????? | | ?????????????????????????????????# #?????? | | ?????????????????????????????????###########?????? | | ?????????????????????????????????????????????????? | | ?????????????????????????????????????????????????? | | ?????????????????????????????????????????????????? | | ?????????????????????????????????????????????????? | | ?????????????????????????????????????????????????? | | | | | | | | | +----------------------------------------------------+ Best States ------------- Heat Dissipation 25 Energy Generation 10 Energy Capacity 250 Matter Stores 300 Matter Capacity 300 Sight Range 18 Terrain Scan Density 10 Resistance: KI 20 Resistance: TH 20 Resistance: EX 20 Resistance: EM 20 Resistance: I 20 Resistance: S 20 Resistance: P 20 Evasion (%) 50 Offensive Hacking 10 Item Schematics ----------------- None Robot Schematics ------------------ None Fabricated ------------ Nothing Repaired ---------- Ion Engine | 36% | -10/Materials Alien Tech Used ----------------- None Achievements -------------- GoHome() Challenges ------------ None Game ------ Seed PhaseAblativeSheargun Manual? 0 Play Time 00:13:21 Cumulative 11.3 hours Start 2025.05.28 @ 16:55:08 End 2025.05.28 @ 17:13:18 Sessions 1 Manual Loads 0 Difficulty Adventurer Special Mode None Game No. 9 Rogue 0 Adventurer 9 Explorer 0 Win Type - Total 0 Types 0/0/0/0/0/0/0/0/0/0 Lore% 10 Gallery% 18 Achievement% 18 Wizard Run 0 Options --------- Layout 1 ASCII 0 Keyboard 0 Movement Mouse Keybinds 0 Fullscreen 1 Font 24/Smallcaps Map View 50x35 Zoom Use 0% Tactical HUD 1 Map Filters NONE Filters NONE Steam 1 RUN: a51f16dc-2d2a-4f68-bac1-a64882c337f6